[Event "Titled Tuesday Blitz November 30 2021"]
[White "Krishnan, Varun"]
[Black "Rasulov, Vugar"]
[WhiteFideId "5054508"]
[BlackFideId "13402390"]
[WhiteElo "2661"]
[BlackElo "2560"]
[Result "1/2-1/2"]
[Round "03"]
[TimeControl "180+1"]
[Date "2021.11.30"]
[WhiteClock "0:00:13"]
[BlackClock "0:00:38"]

1. e4 {[%clk 0:03:00]}  c5 {[%clk 0:02:59]} 2. Nf3 {[%clk 0:02:59]}  d6 {[%clk 0:03:00]} 3. d4 {[%clk 0:02:59]}  cxd4 {[%clk 0:03:01]} 4. Nxd4 {[%clk 0:02:59]}  Nf6 {[%clk 0:03:01]} 5. Nc3 {[%clk 0:03:00]}  a6 {[%clk 0:03:02]} 6. Be3 {[%clk 0:02:53]}  e5 {[%clk 0:03:00]} 7. Nf3 {[%clk 0:02:47]}  Qc7 {[%clk 0:03:00]} 8. a4 {[%clk 0:02:42]}  Be7 {[%clk 0:03:00]} 9. Bg5 {[%clk 0:02:33]}  Nbd7 {[%clk 0:02:58]} 10. Nd2 {[%clk 0:02:30]}  b6 {[%clk 0:02:52]} 11. Bc4 {[%clk 0:02:27]}  Bb7 {[%clk 0:02:48]} 12. Qe2 {[%clk 0:02:23]}  h6 {[%clk 0:02:47]} 13. Bh4 {[%clk 0:02:22]}  O-O {[%clk 0:02:45]} 14. O-O {[%clk 0:02:13]}  Rfc8 {[%clk 0:02:43]} 15. Ba2 {[%clk 0:02:10]}  Bc6 {[%clk 0:02:29]} 16. f3 {[%clk 0:01:51]}  b5 {[%clk 0:02:26]} 17. a5 {[%clk 0:01:46]}  b4 {[%clk 0:02:24]} 18. Nd1 {[%clk 0:01:45]}  Bb5 {[%clk 0:02:23]} 19. Qe3 {[%clk 0:01:39]}  Bxf1 {[%clk 0:02:23]} 20. Kxf1 {[%clk 0:01:31]}  Qxc2 {[%clk 0:02:22]} 21. Nc4 {[%clk 0:01:32]}  Rxc4 {[%clk 0:02:20]} 22. Bb3 {[%clk 0:01:29]}  Rc3 {[%clk 0:02:07]} 23. Bxc2 {[%clk 0:01:21]}  Rxe3 {[%clk 0:02:08]} 24. Nxe3 {[%clk 0:01:21]}  Nc5 {[%clk 0:02:08]} 25. Bxf6 {[%clk 0:01:09]}  Bxf6 {[%clk 0:02:09]} 26. Nd5 {[%clk 0:01:09]}  b3 {[%clk 0:02:08]} 27. Bd1 {[%clk 0:01:07]}  Bd8 {[%clk 0:02:08]} 28. Be2 {[%clk 0:01:06]}  Rb8 {[%clk 0:02:06]} 29. Bc4 {[%clk 0:01:03]}  Kf8 {[%clk 0:02:05]} 30. g3 {[%clk 0:01:01]}  g6 {[%clk 0:02:03]} 31. h4 {[%clk 0:01:00]}  h5 {[%clk 0:02:03]} 32. Ke2 {[%clk 0:00:58]}  Ne6 {[%clk 0:02:03]} 33. Bxa6 {[%clk 0:00:50]}  Ra8 {[%clk 0:02:02]} 34. Bc4 {[%clk 0:00:50]}  Rxa5 {[%clk 0:02:01]} 35. Rxa5 {[%clk 0:00:48]}  Bxa5 {[%clk 0:02:02]} 36. f4 {[%clk 0:00:42]}  Nc5 {[%clk 0:01:59]} 37. Kf3 {[%clk 0:00:37]}  Bd2 {[%clk 0:01:59]} 38. fxe5 {[%clk 0:00:28]}  dxe5 {[%clk 0:02:00]} 39. Ne3 {[%clk 0:00:26]}  Bxe3 {[%clk 0:01:57]} 40. Kxe3 {[%clk 0:00:27]}  Ke7 {[%clk 0:01:57]} 41. Bd5 {[%clk 0:00:27]}  f5 {[%clk 0:01:54]} 42. exf5 {[%clk 0:00:24]}  gxf5 {[%clk 0:01:55]} 43. Bf3 {[%clk 0:00:24]}  Na4 {[%clk 0:01:42]} 44. Bd1 {[%clk 0:00:21]}  Nxb2 {[%clk 0:01:42]} 45. Bxb3 {[%clk 0:00:21]}  Kf6 {[%clk 0:01:42]} 46. Kd2 {[%clk 0:00:13]}  e4 {[%clk 0:01:42]} 47. Ke3 {[%clk 0:00:13]}  Nd3 {[%clk 0:01:41]} 48. Bd1 {[%clk 0:00:13]}  Kg6 {[%clk 0:01:40]} 49. Ba4 {[%clk 0:00:13]}  Kf6 {[%clk 0:01:12]} 50. Be8 {[%clk 0:00:13]}  Nb4 {[%clk 0:01:10]} 51. Bxh5 {[%clk 0:00:13]}  Ke5 {[%clk 0:01:11]} 52. Bd1 {[%clk 0:00:13]}  Nd5+ {[%clk 0:01:11]} 53. Kf2 {[%clk 0:00:13]}  Nf6 {[%clk 0:01:08]} 54. Ke3 {[%clk 0:00:12]}  Nd5+ {[%clk 0:01:06]} 55. Kf2 {[%clk 0:00:12]}  Kd4 {[%clk 0:01:06]} 56. h5 {[%clk 0:00:11]}  Nf6 {[%clk 0:01:06]} 57. h6 {[%clk 0:00:10]}  Ke5 {[%clk 0:01:06]} 58. Ke3 {[%clk 0:00:10]}  Nd5+ {[%clk 0:01:05]} 59. Kf2 {[%clk 0:00:10]}  Kf6 {[%clk 0:01:06]} 60. Bb3 {[%clk 0:00:09]}  Ne7 {[%clk 0:00:55]} 61. Ke3 {[%clk 0:00:07]}  Kg5 {[%clk 0:00:48]} 62. h7 {[%clk 0:00:06]}  Ng6 {[%clk 0:00:48]} 63. Bf7 {[%clk 0:00:03]}  Nh8 {[%clk 0:00:48]} 64. Be8 {[%clk 0:00:03]}  Kg4 {[%clk 0:00:49]} 65. Bd7 {[%clk 0:00:03]}  Kg5 {[%clk 0:00:44]} 66. Be8 {[%clk 0:00:03]}  Kf6 {[%clk 0:00:39]} 67. Bd7 {[%clk 0:00:04]}  Kg6 {[%clk 0:00:37]} 68. Bc8 {[%clk 0:00:04]}  Nf7 {[%clk 0:00:35]} 69. Kf4 {[%clk 0:00:04]}  Kxh7 {[%clk 0:00:32]} 70. Bxf5+ {[%clk 0:00:04]}  Kg7 {[%clk 0:00:33]} 71. Bxe4 {[%clk 0:00:05]}  Nd6 {[%clk 0:00:33]} 72. g4 {[%clk 0:00:06]}  Nxe4 {[%clk 0:00:32]} 73. Kxe4 {[%clk 0:00:07]}  Kg6 {[%clk 0:00:33]} 74. Kf4 {[%clk 0:00:07]}  Kf6 {[%clk 0:00:34]} 75. g5+ {[%clk 0:00:08]}  Kg6 {[%clk 0:00:35]} 76. Kg4 {[%clk 0:00:09]}  Kg7 {[%clk 0:00:35]} 77. Kf5 {[%clk 0:00:10]}  Kf7 {[%clk 0:00:36]} 78. g6+ {[%clk 0:00:10]}  Kg7 {[%clk 0:00:36]} 79. Kg5 {[%clk 0:00:11]}  Kg8 {[%clk 0:00:37]} 80. Kf6 {[%clk 0:00:11]}  Kf8 {[%clk 0:00:37]} 81. g7+ {[%clk 0:00:12]}  Kg8 {[%clk 0:00:38]} 82. Kg6 {[%clk 0:00:13]} 1/2-1/2


[Site "https://www.chess.com"]

[Event "Titled Tuesday Blitz November 30 2021"]
[White "Mirzoev, Azer"]
[Black "Perez Ponsa, Federico"]
[WhiteFideId "13400304"]
[BlackFideId "117927"]
[WhiteElo "2525"]
[BlackElo "2672"]
[Result "1/2-1/2"]
[Round "03"]
[TimeControl "180+1"]
[Date "2021.11.30"]
[WhiteClock "0:00:20"]
[BlackClock "0:00:14"]

1. d4 {[%clk 0:02:59]}  d5 {[%clk 0:02:55]} 2. Nf3 {[%clk 0:03:00]}  Nf6 {[%clk 0:02:54]} 3. Bf4 {[%clk 0:02:59]}  c5 {[%clk 0:02:54]} 4. e3 {[%clk 0:03:00]}  Nc6 {[%clk 0:02:53]} 5. c3 {[%clk 0:02:59]}  Qb6 {[%clk 0:02:51]} 6. Qb3 {[%clk 0:02:58]}  c4 {[%clk 0:02:51]} 7. Qc2 {[%clk 0:02:59]}  Bf5 {[%clk 0:02:52]} 8. Qc1 {[%clk 0:02:59]}  e6 {[%clk 0:02:52]} 9. Nbd2 {[%clk 0:02:59]}  Be7 {[%clk 0:02:52]} 10. Be2 {[%clk 0:02:59]}  O-O {[%clk 0:02:52]} 11. O-O {[%clk 0:03:00]}  Rfc8 {[%clk 0:02:49]} 12. Ne5 {[%clk 0:02:58]}  Qd8 {[%clk 0:02:23]} 13. Re1 {[%clk 0:02:53]}  b5 {[%clk 0:02:14]} 14. Bf3 {[%clk 0:02:44]}  Nxe5 {[%clk 0:01:49]} 15. Bxe5 {[%clk 0:02:43]}  Ne4 {[%clk 0:01:46]} 16. Nxe4 {[%clk 0:02:38]}  Bxe4 {[%clk 0:01:37]} 17. Bxe4 {[%clk 0:02:38]}  dxe4 {[%clk 0:01:38]} 18. Qc2 {[%clk 0:02:31]}  Qd5 {[%clk 0:01:38]} 19. Rf1 {[%clk 0:02:31]}  Bg5 {[%clk 0:01:33]} 20. Rae1 {[%clk 0:02:25]}  f6 {[%clk 0:01:19]} 21. Bf4 {[%clk 0:02:19]}  a5 {[%clk 0:01:00]} 22. Bxg5 {[%clk 0:02:18]}  fxg5 {[%clk 0:01:01]} 23. f3 {[%clk 0:02:15]}  exf3 {[%clk 0:01:01]} 24. Rxf3 {[%clk 0:02:14]}  b4 {[%clk 0:01:00]} 25. Ref1 {[%clk 0:02:08]}  b3 {[%clk 0:00:53]} 26. Qb1 {[%clk 0:01:59]}  bxa2 {[%clk 0:00:40]} 27. Qxa2 {[%clk 0:01:59]}  Rab8 {[%clk 0:00:41]} 28. R1f2 {[%clk 0:01:55]}  h6 {[%clk 0:00:38]} 29. h3 {[%clk 0:01:54]}  Rb5 {[%clk 0:00:37]} 30. Qa3 {[%clk 0:01:52]}  Qe4 {[%clk 0:00:28]} 31. Qe7 {[%clk 0:01:45]}  Rf5 {[%clk 0:00:26]} 32. Rxf5 {[%clk 0:00:34]}  exf5 {[%clk 0:00:27]} 33. Qxe4 {[%clk 0:00:34]}  fxe4 {[%clk 0:00:27]} 34. Rf5 {[%clk 0:00:34]}  Rb8 {[%clk 0:00:27]} 35. Rxa5 {[%clk 0:00:34]}  Rxb2 {[%clk 0:00:28]} 36. Rc5 {[%clk 0:00:33]}  Re2 {[%clk 0:00:27]} 37. Rxc4 {[%clk 0:00:32]}  Rxe3 {[%clk 0:00:28]} 38. d5 {[%clk 0:00:30]}  Kf7 {[%clk 0:00:27]} 39. d6 {[%clk 0:00:24]}  Ke6 {[%clk 0:00:17]} 40. Rd4 {[%clk 0:00:22]}  Kd7 {[%clk 0:00:18]} 41. c4 {[%clk 0:00:22]}  Rc3 {[%clk 0:00:18]} 42. Rxe4 {[%clk 0:00:21]}  Kxd6 {[%clk 0:00:18]} 43. Rd4+ {[%clk 0:00:21]}  Ke5 {[%clk 0:00:18]} 44. Rd7 {[%clk 0:00:21]}  Rxc4 {[%clk 0:00:16]} 45. Rxg7 {[%clk 0:00:20]}  Rc6 {[%clk 0:00:14]} 1/2-1/2


[Site "https://www.chess.com"]

[Event "Titled Tuesday Blitz November 30 2021"]
[White "Sanal, Vahap"]
[Black "Mitrabha, Guha"]
[WhiteFideId "6300545"]
[BlackFideId "5057000"]
[WhiteElo "2499"]
[BlackElo "2334"]
[Result "0-1"]
[Round "03"]
[TimeControl "180+1"]
[Date "2021.11.30"]
[WhiteClock "0:01:03"]
[BlackClock "0:01:57"]

1. e4 {[%clk 0:02:59]}  c6 {[%clk 0:02:50]} 2. d3 {[%clk 0:02:57]}  d5 {[%clk 0:02:51]} 3. Nf3 {[%clk 0:02:56]}  dxe4 {[%clk 0:02:51]} 4. dxe4 {[%clk 0:02:56]}  Qxd1+ {[%clk 0:02:52]} 5. Kxd1 {[%clk 0:02:56]}  Nf6 {[%clk 0:02:53]} 6. Nbd2 {[%clk 0:02:56]}  Bg4 {[%clk 0:02:52]} 7. Be2 {[%clk 0:02:56]}  Nbd7 {[%clk 0:02:52]} 8. Ne1 {[%clk 0:02:54]}  Bxe2+ {[%clk 0:02:51]} 9. Kxe2 {[%clk 0:02:55]}  g6 {[%clk 0:02:52]} 10. Nd3 {[%clk 0:02:54]}  Bg7 {[%clk 0:02:52]} 11. f3 {[%clk 0:02:55]}  O-O-O {[%clk 0:02:52]} 12. a4 {[%clk 0:02:50]}  Ne8 {[%clk 0:02:51]} 13. Nb3 {[%clk 0:02:28]}  Nc7 {[%clk 0:02:49]} 14. Be3 {[%clk 0:02:28]}  Kb8 {[%clk 0:02:43]} 15. Rhd1 {[%clk 0:02:26]}  Ne6 {[%clk 0:02:42]} 16. c3 {[%clk 0:02:26]}  Nb6 {[%clk 0:02:41]} 17. Nbc5 {[%clk 0:02:19]}  Nxc5 {[%clk 0:02:39]} 18. Nxc5 {[%clk 0:02:19]}  Nc4 {[%clk 0:02:37]} 19. Bf4+ {[%clk 0:02:17]}  Kc8 {[%clk 0:02:36]} 20. b3 {[%clk 0:02:12]}  Na5 {[%clk 0:02:31]} 21. b4 {[%clk 0:01:55]}  Nc4 {[%clk 0:02:30]} 22. Rac1 {[%clk 0:01:48]}  Rxd1 {[%clk 0:02:18]} 23. Kxd1 {[%clk 0:01:34]}  Rd8+ {[%clk 0:02:16]} 24. Kc2 {[%clk 0:01:30]}  e5 {[%clk 0:02:14]} 25. Bg5 {[%clk 0:01:30]}  f6 {[%clk 0:02:14]} 26. Kb3 {[%clk 0:01:28]}  b5 {[%clk 0:02:13]} 27. axb5 {[%clk 0:01:20]}  cxb5 {[%clk 0:02:14]} 28. Ne6 {[%clk 0:01:20]}  Rd6 {[%clk 0:02:00]} 29. Nxg7 {[%clk 0:01:13]}  fxg5 {[%clk 0:02:00]} 30. Ra1 {[%clk 0:01:13]}  Rd2 {[%clk 0:01:57]} 31. Rb1 {[%clk 0:01:03]}  Kd7 {[%clk 0:01:57]} 0-1


[Site "https://www.chess.com"]

[Event "Titled Tuesday Blitz November 30 2021"]
[White "Siva Mahadevan"]
[Black "Kucuksari, Kaan"]
[WhiteFideId "25043153"]
[BlackFideId "6380166"]
[WhiteElo "2203"]
[BlackElo "2301"]
[Result "1-0"]
[Round "03"]
[TimeControl "180+1"]
[Date "2021.11.30"]
[WhiteClock "0:02:23"]
[BlackClock "0:01:26"]

1. e4 {[%clk 0:02:58]}  c6 {[%clk 0:02:59]} 2. d4 {[%clk 0:02:58]}  d5 {[%clk 0:03:00]} 3. e5 {[%clk 0:02:59]}  c5 {[%clk 0:02:58]} 4. Nf3 {[%clk 0:02:59]}  cxd4 {[%clk 0:02:56]} 5. Nxd4 {[%clk 0:03:00]}  Nc6 {[%clk 0:02:56]} 6. c4 {[%clk 0:03:00]}  e6 {[%clk 0:02:47]} 7. Nc3 {[%clk 0:03:00]}  Bc5 {[%clk 0:02:37]} 8. Nxc6 {[%clk 0:02:48]}  bxc6 {[%clk 0:02:38]} 9. Qg4 {[%clk 0:02:47]}  Ne7 {[%clk 0:02:30]} 10. Qxg7 {[%clk 0:02:46]}  Ng6 {[%clk 0:02:30]} 11. cxd5 {[%clk 0:02:39]}  exd5 {[%clk 0:01:54]} 12. Bd3 {[%clk 0:02:23]}  Bf8 {[%clk 0:01:24]} 13. Qf6 {[%clk 0:02:23]}  Be7 {[%clk 0:01:25]} 14. Qxc6+ {[%clk 0:02:23]}  Bd7 {[%clk 0:01:26]} 15. Qxd5 {[%clk 0:02:23]}  Nf4 {[%clk 0:01:26]} 16. Bxf4 {[%clk 0:02:23]} 1-0


[Site "https://www.chess.com"]

[Event "Titled Tuesday Blitz November 30 2021"]
[White "Sydoryka, Vladyslav"]
[Black "Bazeev, German"]
[WhiteFideId "14145928"]
[BlackFideId "24119350"]
[WhiteElo "2264"]
[BlackElo "2462"]
[Result "0-1"]
[Round "03"]
[TimeControl "180+1"]
[Date "2021.11.30"]
[WhiteClock "0:00:04"]
[BlackClock "0:00:10"]

1. c4 {[%clk 0:03:00]}  e5 {[%clk 0:03:00]} 2. g3 {[%clk 0:03:00]}  Nf6 {[%clk 0:02:59]} 3. Bg2 {[%clk 0:03:01]}  Nc6 {[%clk 0:02:59]} 4. Nc3 {[%clk 0:03:01]}  Bb4 {[%clk 0:02:55]} 5. Nd5 {[%clk 0:03:00]}  Bc5 {[%clk 0:02:55]} 6. e3 {[%clk 0:02:58]}  d6 {[%clk 0:02:55]} 7. Ne2 {[%clk 0:02:57]}  O-O {[%clk 0:02:55]} 8. h3 {[%clk 0:02:57]}  Bb6 {[%clk 0:02:56]} 9. O-O {[%clk 0:02:57]}  h6 {[%clk 0:02:50]} 10. b3 {[%clk 0:02:50]}  Bf5 {[%clk 0:02:47]} 11. d3 {[%clk 0:02:49]}  Bh7 {[%clk 0:02:43]} 12. Bb2 {[%clk 0:02:47]}  Nxd5 {[%clk 0:02:40]} 13. cxd5 {[%clk 0:02:47]}  Nb4 {[%clk 0:02:40]} 14. Nc1 {[%clk 0:02:45]}  f5 {[%clk 0:02:38]} 15. a3 {[%clk 0:02:44]}  Na6 {[%clk 0:02:38]} 16. Ne2 {[%clk 0:02:43]}  Qd7 {[%clk 0:02:18]} 17. Qd2 {[%clk 0:02:40]}  Rae8 {[%clk 0:02:16]} 18. Kh2 {[%clk 0:02:39]}  Nc5 {[%clk 0:02:11]} 19. Nc1 {[%clk 0:02:22]}  f4 {[%clk 0:02:11]} 20. b4 {[%clk 0:02:21]}  Na4 {[%clk 0:01:59]} 21. exf4 {[%clk 0:02:01]}  exf4 {[%clk 0:01:59]} 22. Bf3 {[%clk 0:01:33]}  fxg3+ {[%clk 0:00:56]} 23. fxg3 {[%clk 0:01:34]}  Nxb2 {[%clk 0:00:51]} 24. Qxb2 {[%clk 0:01:33]}  Bf5 {[%clk 0:00:52]} 25. Qg2 {[%clk 0:01:26]}  Re3 {[%clk 0:00:44]} 26. Be4 {[%clk 0:00:27]}  Bxe4 {[%clk 0:00:44]} 27. Rxf8+ {[%clk 0:00:28]}  Kxf8 {[%clk 0:00:45]} 28. dxe4 {[%clk 0:00:29]}  Qe7 {[%clk 0:00:45]} 29. Ne2 {[%clk 0:00:27]}  Qxe4 {[%clk 0:00:43]} 30. Nf4 {[%clk 0:00:20]}  Qxg2+ {[%clk 0:00:32]} 31. Kxg2 {[%clk 0:00:21]}  Kg8 {[%clk 0:00:18]} 32. h4 {[%clk 0:00:18]}  Bd4 {[%clk 0:00:15]} 33. Rc1 {[%clk 0:00:14]}  Rc3 {[%clk 0:00:14]} 34. Rxc3 {[%clk 0:00:12]}  Bxc3 {[%clk 0:00:15]} 35. Ne6 {[%clk 0:00:13]}  c6 {[%clk 0:00:15]} 36. Nd8 {[%clk 0:00:11]}  cxd5 {[%clk 0:00:15]} 37. Nxb7 {[%clk 0:00:11]}  Be5 {[%clk 0:00:16]} 38. Kf3 {[%clk 0:00:10]}  Kf7 {[%clk 0:00:16]} 39. Nd8+ {[%clk 0:00:08]}  Ke8 {[%clk 0:00:15]} 40. Nc6 {[%clk 0:00:09]}  Bb2 {[%clk 0:00:12]} 41. a4 {[%clk 0:00:07]}  Ba3 {[%clk 0:00:12]} 42. b5 {[%clk 0:00:06]}  Bc5 {[%clk 0:00:13]} 43. h5 {[%clk 0:00:05]}  Kf7 {[%clk 0:00:12]} 44. Ke2 {[%clk 0:00:03]}  g6 {[%clk 0:00:12]} 45. Kf3 {[%clk 0:00:03]}  gxh5 {[%clk 0:00:12]} 46. Kf4 {[%clk 0:00:01]}  Ke6 {[%clk 0:00:12]} 47. Nd8+ {[%clk 0:00:01]}  Kd7 {[%clk 0:00:11]} 48. Nc6 {[%clk 0:00:02]}  a6 {[%clk 0:00:09]} 49. Kf5 {[%clk 0:00:02]}  axb5 {[%clk 0:00:09]} 50. axb5 {[%clk 0:00:03]}  Kc7 {[%clk 0:00:10]} 51. Kg6 {[%clk 0:00:03]}  Bf2 {[%clk 0:00:09]} 52. Kxh5 {[%clk 0:00:02]}  Bxg3 {[%clk 0:00:09]} 53. Kxh6 {[%clk 0:00:03]}  Kb6 {[%clk 0:00:10]} 54. Kg5 {[%clk 0:00:03]}  Kxb5 {[%clk 0:00:10]} 55. Kg4 {[%clk 0:00:04]}  Kxc6 {[%clk 0:00:10]} 0-1


[Site "https://www.chess.com"]

[Event "Titled Tuesday Blitz November 30 2021"]
[White "Vaishali, Rameshbabu"]
[Black "Indjic, Aleksandar"]
[WhiteFideId "5091756"]
[BlackFideId "911925"]
[WhiteElo "2313"]
[BlackElo "2643"]
[Result "0-1"]
[Round "03"]
[TimeControl "180+1"]
[Date "2021.11.30"]
[WhiteClock "0:01:33"]
[BlackClock "0:02:02"]

1. d4 {[%clk 0:03:00]}  c6 {[%clk 0:03:00]} 2. c4 {[%clk 0:03:00]}  d5 {[%clk 0:03:00]} 3. cxd5 {[%clk 0:02:59]}  cxd5 {[%clk 0:03:00]} 4. Nc3 {[%clk 0:03:00]}  Nc6 {[%clk 0:02:57]} 5. Bf4 {[%clk 0:02:55]}  e6 {[%clk 0:02:57]} 6. e3 {[%clk 0:02:55]}  Bd6 {[%clk 0:02:56]} 7. Bg3 {[%clk 0:02:46]}  Nf6 {[%clk 0:02:55]} 8. Bd3 {[%clk 0:02:46]}  O-O {[%clk 0:02:54]} 9. Nf3 {[%clk 0:02:41]}  a6 {[%clk 0:02:51]} 10. Rc1 {[%clk 0:02:40]}  h6 {[%clk 0:02:42]} 11. O-O {[%clk 0:02:34]}  Bxg3 {[%clk 0:02:41]} 12. hxg3 {[%clk 0:02:33]}  Qd6 {[%clk 0:02:39]} 13. Na4 {[%clk 0:02:29]}  Rb8 {[%clk 0:02:38]} 14. Bb1 {[%clk 0:02:18]}  Bd7 {[%clk 0:02:31]} 15. Nc5 {[%clk 0:02:15]}  Rfc8 {[%clk 0:02:29]} 16. a3 {[%clk 0:02:10]}  Be8 {[%clk 0:02:24]} 17. Qd3 {[%clk 0:02:06]}  Ne7 {[%clk 0:02:13]} 18. g4 {[%clk 0:02:03]}  Bb5 {[%clk 0:02:12]} 19. Qd2 {[%clk 0:01:38]}  Bxf1 {[%clk 0:02:11]} 20. Rxf1 {[%clk 0:01:39]}  Nxg4 {[%clk 0:02:05]} 21. Qd3 {[%clk 0:01:36]}  Nf6 {[%clk 0:02:03]} 22. Ne5 {[%clk 0:01:33]}  Rxc5 {[%clk 0:02:02]} 0-1


[Site "https://www.chess.com"]

[Event "Titled Tuesday Blitz November 30 2021"]
[White "Zhigalko, Sergei"]
[Black "Tanenbaum, Zachary"]
[WhiteFideId "13502956"]
[BlackFideId "2060850"]
[WhiteElo "2662"]
[BlackElo "2168"]
[Result "1-0"]
[Round "03"]
[TimeControl "180+1"]
[Date "2021.11.30"]
[WhiteClock "0:00:06"]
[BlackClock "0:00:02"]

1. e4 {[%clk 0:03:00]}  e5 {[%clk 0:03:00]} 2. Nf3 {[%clk 0:03:01]}  Nc6 {[%clk 0:03:01]} 3. Bc4 {[%clk 0:03:01]}  Nf6 {[%clk 0:03:01]} 4. d3 {[%clk 0:03:01]}  Be7 {[%clk 0:03:01]} 5. O-O {[%clk 0:03:01]}  O-O {[%clk 0:03:02]} 6. Nbd2 {[%clk 0:03:01]}  d6 {[%clk 0:03:01]} 7. c3 {[%clk 0:03:01]}  Be6 {[%clk 0:03:01]} 8. Bb5 {[%clk 0:03:01]}  a6 {[%clk 0:02:35]} 9. Bxc6 {[%clk 0:03:01]}  bxc6 {[%clk 0:02:36]} 10. h3 {[%clk 0:02:59]}  c5 {[%clk 0:02:34]} 11. Re1 {[%clk 0:02:57]}  Re8 {[%clk 0:02:29]} 12. d4 {[%clk 0:02:57]}  cxd4 {[%clk 0:02:27]} 13. cxd4 {[%clk 0:02:58]}  exd4 {[%clk 0:02:27]} 14. Nxd4 {[%clk 0:02:58]}  Qd7 {[%clk 0:01:53]} 15. b3 {[%clk 0:02:44]}  c5 {[%clk 0:01:51]} 16. Nxe6 {[%clk 0:02:42]}  Qxe6 {[%clk 0:01:50]} 17. Bb2 {[%clk 0:02:43]}  Rad8 {[%clk 0:01:45]} 18. Qf3 {[%clk 0:02:30]}  Nd7 {[%clk 0:01:34]} 19. Nc4 {[%clk 0:02:27]}  Bf6 {[%clk 0:01:33]} 20. Bxf6 {[%clk 0:02:25]}  Qxf6 {[%clk 0:01:28]} 21. Qxf6 {[%clk 0:02:19]}  Nxf6 {[%clk 0:01:29]} 22. f3 {[%clk 0:02:20]}  Re6 {[%clk 0:01:12]} 23. Rad1 {[%clk 0:02:04]}  d5 {[%clk 0:01:12]} 24. exd5 {[%clk 0:02:04]}  Rxd5 {[%clk 0:01:13]} 25. Kf2 {[%clk 0:01:59]}  Rxe1 {[%clk 0:01:09]} 26. Rxe1 {[%clk 0:01:56]}  Kf8 {[%clk 0:00:58]} 27. g4 {[%clk 0:01:30]}  Ne8 {[%clk 0:00:51]} 28. Re4 {[%clk 0:00:46]}  Nd6 {[%clk 0:00:47]} 29. Nxd6 {[%clk 0:00:44]}  Rxd6 {[%clk 0:00:48]} 30. Ke3 {[%clk 0:00:44]}  Rh6 {[%clk 0:00:17]} 31. Ra4 {[%clk 0:00:21]}  Rxh3 {[%clk 0:00:17]} 32. Rxa6 {[%clk 0:00:21]}  h5 {[%clk 0:00:17]} 33. gxh5 {[%clk 0:00:14]}  Rxh5 {[%clk 0:00:18]} 34. a4 {[%clk 0:00:13]}  Rh4 {[%clk 0:00:19]} 35. Rb6 {[%clk 0:00:10]}  Ke7 {[%clk 0:00:04]} 36. a5 {[%clk 0:00:10]}  Kd7 {[%clk 0:00:04]} 37. a6 {[%clk 0:00:07]}  Rh1 {[%clk 0:00:04]} 38. Rb7+ {[%clk 0:00:04]}  Ke6 {[%clk 0:00:04]} 39. a7 {[%clk 0:00:04]}  Ra1 {[%clk 0:00:04]} 40. Kd3 {[%clk 0:00:04]}  g5 {[%clk 0:00:02]} 41. Kc4 {[%clk 0:00:05]}  Ra5 {[%clk 0:00:03]} 42. Rb6+ {[%clk 0:00:03]}  Ke5 {[%clk 0:00:03]} 43. Rb7 {[%clk 0:00:02]}  f5 {[%clk 0:00:03]} 44. Rg7 {[%clk 0:00:02]}  g4 {[%clk 0:00:03]} 45. fxg4 {[%clk 0:00:03]}  fxg4 {[%clk 0:00:04]} 46. Rxg4 {[%clk 0:00:02]}  Rxa7 {[%clk 0:00:05]} 47. Kxc5 {[%clk 0:00:03]}  Rc7+ {[%clk 0:00:04]} 48. Kb6 {[%clk 0:00:03]}  Rc3 {[%clk 0:00:04]} 49. b4 {[%clk 0:00:02]}  Kd6 {[%clk 0:00:05]} 50. Rd4+ {[%clk 0:00:02]}  Ke7 {[%clk 0:00:05]} 51. Rd1 {[%clk 0:00:03]}  Rc8 {[%clk 0:00:04]} 52. b5 {[%clk 0:00:03]}  Rb8+ {[%clk 0:00:05]} 53. Kc6 {[%clk 0:00:04]}  Ra8 {[%clk 0:00:04]} 54. b6 {[%clk 0:00:04]}  Ra2 {[%clk 0:00:04]} 55. Kc7 {[%clk 0:00:04]}  Rc2+ {[%clk 0:00:04]} 56. Kb8 {[%clk 0:00:05]}  Rb2 {[%clk 0:00:05]} 57. b7 {[%clk 0:00:05]}  Ra2 {[%clk 0:00:05]} 58. Rd4 {[%clk 0:00:05]}  Ke6 {[%clk 0:00:05]} 59. Kc7 {[%clk 0:00:04]}  Rc2+ {[%clk 0:00:04]} 60. Kb6 {[%clk 0:00:05]}  Ke5 {[%clk 0:00:04]} 61. Rd8 {[%clk 0:00:04]}  Rb2+ {[%clk 0:00:03]} 62. Kc6 {[%clk 0:00:05]}  Rc2+ {[%clk 0:00:04]} 63. Kd7 {[%clk 0:00:05]}  Rd2+ {[%clk 0:00:02]} 64. Ke7 {[%clk 0:00:05]}  Rxd8 {[%clk 0:00:02]} 65. Kxd8 {[%clk 0:00:06]} 1-0


[Site "https://www.chess.com"]